bitfinex-derivatives/quotes_SOLF0:USTF0_20260126
["timestamp","ask_amount","ask_price","bid_price","bid_amount"]
[1769416802383,39.92192741,123.04,122.98,67.62268256]
[1769416802687,39.92192741,123.04,122.99,1.73035028]
[1769416803187,39.92192741,123.04,122.99,67.62268256]
[1769416803983,39.92192741,123.02,122.94,67.62268256]
[1769416804192,41.65227769,123.02,122.95,1.73035028]
[1769416804386,41.65227769,123.02,122.95,69.35303284]
[1769416804586,7.3257,123.0,122.95,69.35303284]
[1769416807392,7.3249,123.01,122.95,69.35303284]
[1769416808092,7.3255,123.0,122.95,69.35303284]
[1769416809795,1.73035028,122.99,122.93,71.54399129]
[1769416810090,1.73035028,122.97,122.91,71.54399129]
[1769416810894,9.05765028,122.97,122.91,71.54399129]
[1769416815593,9.05839333,122.97,122.91,71.54399129]
[1769416817797,1.73109333,122.93,122.88,68.78565286]
[1769416823705,7.329,122.94,122.88,68.78565286]
[1769416823903,9.06009333,122.94,122.88,68.78565286]
[1769416832206,7.3296,122.93,122.88,68.78565286]
[1769416837605,47.19903061,122.94,122.88,68.78565286]
[1769416837804,48.93012394,122.94,122.88,68.78565286]
[1769416841307,39.90600517,122.96,122.88,68.78565286]
[1769416841512,39.90600517,122.96,122.88,70.51674619]
[1769416841700,39.90600517,122.96,122.91,70.22376867]
[1769416842110,7.3279,122.96,122.91,70.22376867]
[1769416843713,7.3273,122.97,122.91,70.22376867]
[1769416843910,7.3273,122.97,122.93,70.22376867]
[1769416844918,7.3278,122.96,122.91,70.22376867]
[1769416846719,7.3286,122.95,122.91,70.22376867]
[1769416846931,9.05969333,122.95,122.91,70.22376867]
[1769416847722,7.329,122.94,122.91,70.22376867]
[1769416848224,7.329,122.94,122.88,70.22376867]
[1769416853333,7.3296,122.93,122.88,70.22376867]
[1769416855642,6.70174877,122.94,122.88,70.22376867]
[1769416856938,7.3296,122.93,122.88,70.22376867]
[1769416858033,7.3296,122.93,122.88,71.954862]
[1769416861241,7.3293,122.94,122.88,79.287162]
[1769416861442,14.04432864,122.94,122.88,79.287162]
[1769416862237,7.3293,122.94,122.9,70.22376867]
[1769416862540,14.04596665,122.94,122.9,70.22376867]
[1769416862742,7.3293,122.94,122.9,70.22376867]
[1769416863638,7.3285,122.95,122.9,70.22376867]
[1769416863839,6.77318828,122.94,122.9,70.22376867]
[1769416864044,7.3285,122.95,122.9,70.22376867]
[1769416864343,6.77318828,122.94,122.9,70.22376867]
[1769416864543,7.3285,122.95,122.9,70.22376867]
[1769416864746,6.77321577,122.94,122.9,70.22376867]
[1769416865046,7.3285,122.95,122.9,70.22376867]
[1769416865245,6.77320317,122.94,122.9,70.22376867]
[1769416865438,7.3285,122.95,122.9,70.22376867]
[1769416865640,6.77322528,122.94,122.9,70.22376867]
[1769416865844,7.3285,122.95,122.9,70.22376867]
[1769416866046,6.77322528,122.94,122.9,70.22376867]
[1769416866236,7.3285,122.95,122.9,70.22376867]
[1769416866436,6.77325611,122.94,122.9,70.22376867]
[1769416866632,7.3285,122.95,122.9,70.22376867]
[1769416866845,6.77325966,122.94,122.9,70.22376867]
[1769416867151,7.3285,122.95,122.9,70.22376867]
[1769416867443,6.77330023,122.94,122.9,70.22376867]
[1769416867743,7.3285,122.95,122.9,70.22376867]
[1769416868043,6.77329976,122.94,122.9,70.22376867]
[1769416868243,7.3285,122.95,122.9,70.22376867]
[1769416868444,6.77309366,122.94,122.9,70.22376867]
[1769416870041,7.329,122.94,122.9,70.22376867]
[1769416870541,6.77350101,122.93,122.9,70.22376867]
[1769416871441,7.3296,122.93,122.9,70.22376867]
[1769416873250,56.2499752,122.94,122.9,70.22376867]
[1769416873548,6.77401701,122.93,122.9,70.22376867]
[1769416873742,56.2499752,122.94,122.9,70.22376867]
[1769416873948,6.77401701,122.93,122.9,70.22376867]
[1769416874248,56.2499752,122.94,122.9,70.22376867]
[1769416874449,6.77400639,122.93,122.9,70.22376867]
[1769416874639,56.2499752,122.94,122.9,70.22376867]
[1769416874839,6.77400639,122.93,122.9,70.22376867]
[1769416875037,56.2499752,122.94,122.9,70.22376867]
[1769416875250,6.77400994,122.93,122.9,70.22376867]
[1769416875448,56.2499752,122.94,122.9,70.22376867]
[1769416875649,6.77399421,122.93,122.9,70.22376867]
[1769416875943,56.2499752,122.94,122.9,70.22376867]
[1769416876152,6.77400681,122.93,122.9,70.22376867]
[1769416876347,56.2499752,122.94,122.9,70.22376867]
[1769416876543,6.77400365,122.93,122.9,70.22376867]
[1769416876741,56.2499752,122.94,122.9,70.22376867]
[1769416876952,6.77400365,122.93,122.9,70.22376867]
[1769416877248,56.2499752,122.94,122.9,70.22376867]
[1769416877450,6.77400049,122.93,122.9,70.22376867]
[1769416877649,56.250928,122.94,122.9,70.22376867]
[1769416877855,6.77400049,122.93,122.9,70.22376867]
[1769416878043,56.250928,122.94,122.9,70.22376867]
[1769416878248,6.77400049,122.93,122.9,70.22376867]
[1769416878447,56.250928,122.94,122.9,70.22376867]
[1769416878652,6.7739992,122.93,122.9,70.22376867]
[1769416878854,56.250928,122.94,122.9,70.22376867]
[1769416879153,6.7739992,122.93,122.9,70.22376867]
[1769416879353,56.250928,122.94,122.9,70.22376867]
[1769416879547,6.77399792,122.93,122.9,70.22376867]
[1769416879748,56.250928,122.94,122.9,70.22376867]
[1769416879952,6.77399792,122.93,122.9,70.22376867]
[1769416880154,56.250928,122.94,122.9,70.22376867]
[1769416880454,6.77399671,122.93,122.9,70.22376867]
[1769416880653,56.250928,122.94,122.9,70.22376867]
[1769416880851,6.77399671,122.93,122.9,70.22376867]
[1769416881156,56.250928,122.94,122.9,70.22376867]
[1769416881355,6.77399542,122.93,122.9,70.22376867]
[1769416881556,56.250928,122.94,122.9,70.22376867]
[1769416881759,6.77399542,122.93,122.9,70.22376867]
[1769416882055,56.250928,122.94,122.9,70.22376867]
[1769416882258,6.77399542,122.93,122.9,70.22376867]
[1769416882453,56.250928,122.94,122.9,70.22376867]
[1769416882655,6.77399414,122.93,122.9,70.22376867]
[1769416882950,56.250928,122.94,122.9,70.22376867]
[1769416883151,6.77399414,122.93,122.9,70.22376867]
[1769416883351,56.250928,122.94,122.9,70.22376867]
[1769416883550,6.77398414,122.93,122.9,70.22376867]
[1769416883757,56.250928,122.94,122.9,70.22376867]
[1769416883959,6.77211183,122.93,122.9,70.22376867]
[1769416884155,56.250928,122.94,122.9,70.22376867]
[1769416884452,6.77285384,122.93,122.9,70.22376867]
[1769416884652,56.250928,122.94,122.9,70.22376867]
[1769416884852,6.77285384,122.93,122.9,70.22376867]
[1769416885053,56.250928,122.94,122.9,70.22376867]
[1769416885253,6.77265156,122.93,122.9,70.22376867]
[1769416885454,56.250928,122.94,122.9,70.22376867]
[1769416885652,69.51431958,122.93,122.85,314.56160931]
[1769416885855,8.50461611,122.92,122.85,316.29365544]
[1769416887060,15.83531611,122.92,122.85,323.62805544]
[1769416887260,9.06274613,122.92,122.85,321.89600931]
[1769416887762,7.3308,122.91,122.86,70.95127326]
[1769416889862,69.50290122,122.91,122.86,70.95127326]
[1769416890057,8.49207221,122.9,122.86,70.95127326]
[1769416890551,7.3321,122.89,122.86,70.95127326]
[1769416894668,7.3321,122.89,122.84,72.68331939]
[1769416894875,7.3321,122.89,122.84,70.95127326]
[1769416895064,7.3326,122.88,122.84,70.95127326]
[1769416898265,7.3333,122.87,122.84,70.95127326]
[1769416899569,7.3333,122.87,122.81,65.05188221]
[1769416899570,7.3338,122.86,122.81,65.05188221]
[1769416903174,7.3346,122.85,122.81,65.05188221]
[1769416903375,62.78393177,122.87,122.81,65.05188221]
[1769416904878,70.11753177,122.87,122.81,65.05188221]
[1769416906177,7.334,122.86,122.81,65.05188221]
[1769416906378,62.78393177,122.86,122.81,65.05188221]
[1769416906679,389.4559779,122.88,122.81,66.78392834]
[1769416906879,387.72393177,122.88,122.82,66.78392834]
[1769416907980,7.3334,122.87,122.82,66.78392834]
[1769416909080,395.05663177,122.88,122.82,66.78392834]
[1769416910880,62.78393177,122.87,122.82,1.73204613]
[1769416911083,62.78393177,122.87,122.79,66.78392834]
[1769416911977,7.3339,122.86,122.79,74.12172834]
[1769416912188,7.3339,122.86,122.79,66.78392834]
[1769416913885,70.11783177,122.86,122.79,66.78392834]
[1769416914082,71.8498779,122.86,122.79,66.78392834]
[1769416914487,361.7098779,122.86,122.79,66.78392834]
[1769416914987,361.7098779,122.86,122.79,74.12142834]
[1769416918195,359.97783177,122.86,122.79,74.12142834]
[1769416919390,361.7098779,122.86,122.79,66.78392834]
[1769416920895,71.8498779,122.86,122.79,66.78392834]
[1769416921195,361.5698779,122.86,122.79,66.78392834]
[1769416921789,359.83783177,122.86,122.79,66.78392834]
[1769416923701,7.3345,122.85,122.79,66.78392834]
[1769416927797,7.3356,122.83,122.79,65.05188221]
[1769416932097,70.14610313,122.83,122.79,65.05188221]
[1769416933604,7.3362,122.82,122.77,65.28971518]
[1769416939705,64.54563736,122.83,122.77,65.28971518]
[1769416939909,71.88133736,122.83,122.77,65.28971518]
[1769416950714,70.14620313,122.83,122.77,67.02484941]
[1769416955718,71.88133736,122.83,122.77,67.02484941]
[1769416957424,71.88133736,122.83,122.77,65.28971518]
[1769416957619,7.3362,122.82,122.77,65.28971518]
[1769416960719,64.61286908,122.81,122.75,71.27273786]
[1769416960920,64.61286908,122.79,122.73,71.27273786]
[1769416962023,71.95116908,122.79,122.73,71.27273786]
[1769416963822,7.3406,122.75,122.7,155.41333767]
[1769416964029,6.68001883,122.78,122.71,71.27273786]
[1769416964324,6.67594885,122.78,122.71,71.27273786]
[1769416965224,70.21633485,122.78,122.71,71.27273786]
[1769416965614,71.95256908,122.77,122.71,71.27273786]
[1769416966026,64.61286908,122.77,122.71,71.27273786]
[1769416966927,7.3398,122.76,122.71,71.27273786]
[1769416967728,7.3405,122.75,122.71,71.27273786]
[1769416969525,7.341,122.74,122.71,71.27273786]
[1769416970029,7.341,122.74,122.7,155.41333767]
[1769416974129,70.21873485,122.74,122.7,155.41333767]
[1769416976135,7.341,122.74,122.7,155.41333767]
[1769416980230,7.3404,122.75,122.7,155.41333767]
[1769416980434,62.87773485,122.76,122.71,71.27273786]
[1769416980936,70.21753485,122.76,122.71,71.27273786]
[1769416981929,71.95266908,122.76,122.71,71.27273786]
[1769416982330,70.21753485,122.76,122.71,71.27273786]
[1769416983137,71.95266908,122.76,122.71,71.27273786]
[1769416985529,57.61955765,122.74,122.7,84.14059981]
[1769416987342,57.61955765,122.74,122.7,145.69027672]
[1769416989342,1.73513423,122.74,122.7,145.69027672]
[1769416990443,57.61955765,122.74,122.7,84.14059981]
[1769416991240,7.3416,122.73,122.7,84.14059981]
[1769416998240,7.3416,122.73,122.7,149.44864654]
[1769416998648,7.3428,122.71,122.66,65.30804673]
[1769416999547,1.73860423,122.71,122.66,65.30804673]
[1769417000947,7.3437,122.7,122.66,65.30804673]
[1769417006343,1.73860423,122.71,122.64,71.75474056]
[1769417006344,7.3445,122.69,122.64,71.75474056]
[1769417008357,115.98070423,122.69,122.62,71.75474056]
[1769417008756,1.73860423,122.67,122.62,71.75474056]
[1769417009460,7.3458,122.66,122.62,71.75474056]
[1769417014465,7.3464,122.65,122.6,71.75474056]
[1769417022969,7.3458,122.66,122.6,73.49334479]
[1769417023272,7.3458,122.66,122.62,71.75474056]
[1769417025370,325.44,122.67,122.62,71.75474056]
[1769417025577,325.54,122.67,122.62,73.49334479]
[1769417026766,325.54,122.67,122.62,71.75474056]
[1769417026969,332.8852,122.67,122.62,71.75474056]
[1769417027373,332.93603245,122.67,122.62,71.75474056]
[1769417027976,340.28173245,122.67,122.62,71.75474056]
[1769417030677,7.3459,122.66,122.62,71.75474056]
[1769417032875,325.54,122.68,122.62,71.75474056]
[1769417033978,332.8848,122.68,122.62,71.75474056]
[1769417034171,325.54,122.68,122.62,71.75474056]
[1769417034576,7.3452,122.67,122.62,71.75474056]
[1769417035179,1.73860423,122.66,122.6,65.9196918]
[1769417035376,16.48053668,122.66,122.6,65.9196918]
[1769417036380,14.74193245,122.66,122.6,65.9196918]
[1769417036571,16.48053668,122.66,122.6,65.9196918]
[1769417036880,7.3472,122.64,122.6,65.9196918]
[1769417041581,332.9072,122.64,122.6,65.9196918]
[1769417045679,7.3472,122.64,122.6,65.9196918]
[1769417047186,332.9064,122.65,122.6,65.9196918]
[1769417048184,7.3457,122.67,122.63,67.51432007]
[1769417048384,14.10926737,122.67,122.63,67.51432007]
[1769417049383,7.3457,122.67,122.63,67.51432007]
[1769417049883,14.11131779,122.67,122.63,67.51432007]
[1769417050086,7.3457,122.67,122.63,67.51432007]
[1769417050586,14.11320472,122.67,122.63,67.51432007]
[1769417050788,7.3457,122.67,122.63,67.51432007]
[1769417051276,6.76986172,122.67,122.63,67.51432007]
[1769417051788,23.280362,122.72,122.65,67.51432007]
[1769417051988,6.97781859,122.71,122.65,67.51432007]
[1769417052886,7.3437,122.7,122.65,67.51432007]
[1769417055488,7.3428,122.71,122.65,67.51432007]
[1769417057288,7.3428,122.71,122.66,67.51432007]
[1769417059594,7.3428,122.71,122.66,65.77571584]
[1769417065795,14.00892236,122.71,122.66,65.77571584]
[1769417067195,7.3428,122.71,122.66,65.77571584]
[1769417070393,325.56,122.72,122.68,66.15231977]
[1769417073907,332.9023,122.72,122.68,66.15231977]
[1769417074808,7.3429,122.71,122.65,1.73823786]
[1769417076703,7.3429,122.71,122.66,68.55022662]
[1769417091619,332.9023,122.72,122.66,68.55022662]
[1769417093426,6.64157957,122.71,122.66,68.55022662]
[1769417093627,13.98437957,122.71,122.66,68.55022662]
[1769417096323,6.64157957,122.7,122.66,68.55022662]
[1769417097432,13.98437957,122.71,122.66,68.55022662]
[1769417097934,7.3428,122.71,122.66,68.55022662]
[1769417098134,13.98904303,122.71,122.66,68.55022662]
[1769417098331,6.64624303,122.7,122.66,68.55022662]
[1769417098532,13.98811068,122.71,122.66,68.55022662]
[1769417099630,7.3428,122.71,122.66,68.55022662]
[1769417100136,13.98881744,122.71,122.66,68.55022662]
[1769417100636,7.3428,122.71,122.66,68.55022662]
[1769417104038,7.3434,122.7,122.66,68.55022662]
[1769417104938,13.99137013,122.7,122.66,68.55022662]
[1769417105234,7.3434,122.7,122.66,68.55022662]
[1769417105630,6.6506436,122.7,122.66,68.55022662]
[1769417106038,7.3429,122.71,122.66,68.55022662]
[1769417108342,6.65170334,122.7,122.66,68.55022662]
[1769417108542,7.3429,122.71,122.66,68.55022662]
[1769417108739,6.6489288,122.7,122.66,68.55022662]
[1769417108938,6.6489288,122.69,122.66,68.55022662]
[1769417109443,13.9934288,122.69,122.66,68.55022662]
[1769417110934,7.3434,122.7,122.66,68.55022662]
[1769417112141,368.72031094,122.72,122.66,68.55022662]
[1769417112343,6.9949202,122.71,122.66,68.55022662]
[1769417112939,368.72031094,122.72,122.66,68.55022662]
[1769417116441,332.9026,122.72,122.66,70.28846448]
[1769417116742,325.56,122.72,122.66,68.55022662]
[1769417117135,332.9023,122.72,122.66,68.55022662]
[1769417122949,6.55902275,122.71,122.66,68.55022662]
[1769417125250,56.37810495,122.71,122.66,68.55022662]
[1769417125548,49.8190822,122.71,122.66,68.55022662]
[1769417125746,47.29593808,122.7,122.63,67.39436612]
[1769417125948,40.73789948,122.7,122.63,67.39436612]
[1769417126141,42.4758822,122.69,122.63,67.39436612]
[1769417127449,1.73798272,122.67,122.63,67.39436612]
[1769417127749,9.08318272,122.67,122.63,67.39436612]
[1769417133955,7.3452,122.67,122.63,67.39436612]
[1769417135153,9.08388272,122.66,122.61,65.09601631]
[1769417136449,7.3459,122.66,122.61,65.09601631]
[1769417138257,40.75124356,122.7,122.62,1.73798272]
[1769417138560,42.48922628,122.69,122.63,65.09601631]
[1769417139554,7.3451,122.68,122.63,65.09601631]
[1769417141661,48.09524356,122.69,122.63,65.09601631]
[1769417142052,40.75124356,122.69,122.63,65.09601631]
[1769417143058,7.3449,122.68,122.63,65.09601631]
[1769417146261,48.09524356,122.69,122.63,65.09601631]
[1769417147156,7.344,122.69,122.63,65.09601631]
[1769417147459,7.3434,122.7,122.65,65.09601631]
[1769417153464,48.09414356,122.71,122.65,65.09601631]
[1769417155856,40.75124356,122.71,122.65,65.09601631]
[1769417156060,7.3435,122.7,122.65,65.09601631]
[1769417161971,7.3435,122.7,122.65,66.83399903]
[1769417163066,7.3428,122.71,122.67,65.09601631]
[1769417165967,13.95935733,122.71,122.67,65.09601631]
[1769417166159,9.08138272,122.7,122.64,68.22050191]
[1769417166364,7.3434,122.7,122.64,68.22050191]
[1769417166566,7.3434,122.7,122.64,69.95848463]
[1769417172578,7.3434,122.7,122.64,68.22050191]
[1769417172969,7.344,122.69,122.64,68.22050191]
[1769417180573,114.2052,122.73,122.66,68.81801337]
[1769417180574,154.96126954,122.73,122.66,68.81801337]
[1769417180779,156.69925226,122.73,122.66,68.81801337]
[1769417181175,7.3428,122.71,122.66,68.81801337]
[1769417182674,7.3434,122.7,122.66,68.81801337]
[1769417183181,56.45588009,122.71,122.63,68.81801337]
[1769417183680,63.42925258,122.7,122.63,68.81801337]
[1769417183881,7.3445,122.69,122.63,68.81801337]
[1769417192581,13.88420673,122.69,122.63,68.81801337]
[1769417193480,6.53970673,122.69,122.63,68.81801337]
[1769417194988,13.88370673,122.69,122.63,68.81801337]
[1769417197884,63.02467809,122.69,122.63,68.81801337]
[1769417198083,56.48497136,122.69,122.63,68.81801337]
[1769417198579,7.3456,122.67,122.63,68.81801337]
[1769417200377,9.08354123,122.68,122.63,68.81801337]
[1769417201882,7.3446,122.68,122.63,68.81801337]
[1769417205793,62.09003013,122.69,122.63,68.81801337]
[1769417207290,7.3434,122.7,122.65,65.3935172]
[1769417207685,6.50746748,122.71,122.65,65.3935172]
[1769417207888,54.74603013,122.74,122.67,65.3935172]
[1769417208087,13.48162992,122.73,122.67,65.3935172]
[1769417208288,6.50841168,122.73,122.67,65.3935172]
[1769417208892,13.85001168,122.73,122.67,65.3935172]
[1769417209993,15.58895291,122.73,122.67,65.3935172]
[1769417210192,9.08054123,122.73,122.67,65.3935172]
[1769417213498,7.3416,122.73,122.67,65.3935172]
[1769417216906,54.74603013,122.74,122.69,65.3935172]
[1769417218907,62.08703013,122.74,122.69,65.3935172]
[1769417222111,54.74603013,122.74,122.69,65.3935172]
[1769417222312,56.48497136,122.74,122.69,65.3935172]
[1769417222811,1.73894123,122.73,122.69,65.3935172]
[1769417223012,55.93233311,122.71,122.66,65.3935172]
[1769417223921,7.3434,122.7,122.66,65.3935172]
[1769417225817,7.3442,122.69,122.66,65.3935172]
[1769417229815,61.31614188,122.68,122.64,68.75816021]
[1769417230011,53.97104188,122.68,122.63,68.75816021]
[1769417230215,1.73894123,122.69,122.63,68.75816021]
[1769417231523,1.73894123,122.68,122.63,68.75816021]
[1769417231918,7.3446,122.68,122.63,68.75816021]
[1769417232118,9.08354123,122.68,122.63,68.75816021]
[1769417236128,9.08294123,122.69,122.63,68.75816021]
[1769417238032,9.08354123,122.68,122.63,68.75816021]
[1769417243537,9.08390044,122.68,122.63,68.75816021]
[1769417245937,7.3446,122.68,122.63,68.75816021]
[1769417248440,7.3454,122.67,122.63,68.75816021]
[1769417248634,53.14078992,122.68,122.63,68.75816021]
[1769417249140,7.3457,122.66,122.63,68.75816021]
[1769417249340,53.14078992,122.68,122.63,68.75816021]
[1769417251041,7.3458,122.66,122.63,68.75816021]
[1769417253037,7.3456,122.67,122.63,68.75816021]
[1769417258846,54.5444728,122.66,122.61,67.90040596]
[1769417259547,7.3468,122.65,122.61,67.90040596]
[1769417259746,54.5444728,122.66,122.61,67.90040596]
[1769417260640,61.8907728,122.66,122.61,67.90040596]
[1769417262044,7.3465,122.65,122.61,67.90040596]
[1769417274056,9.08580044,122.65,122.61,67.90040596]
[1769417275043,7.3465,122.65,122.61,67.90040596]
[1769417279956,6.58489693,122.66,122.61,67.90040596]
[1769417280163,7.3457,122.67,122.61,67.90040596]
[1769417280356,7.3457,122.67,122.61,69.6397064]
[1769417281961,53.95999655,122.67,122.61,67.90040596]
[1769417282163,6.58207789,122.66,122.61,67.90040596]
[1769417282661,1.73930044,122.65,122.61,67.90040596]
[1769417283956,9.08570044,122.65,122.61,67.90040596]
[1769417284361,7.3464,122.65,122.61,67.90040596]
[1769417291965,7.3471,122.64,122.59,65.91377504]
[1769417292571,7.3464,122.65,122.59,65.91377504]
[1769417292764,13.91621319,122.65,122.59,65.91377504]
[1769417294667,7.3473,122.64,122.59,65.91377504]
[1769417298074,7.3473,122.64,122.59,67.65307548]
[1769417298280,7.3473,122.64,122.6,68.9178138]
[1769417299579,7.3473,122.64,122.6,67.17851336]
[1769417300079,13.91711319,122.64,122.6,67.17851336]
[1769417300381,7.3473,122.64,122.6,67.17851336]
[1769417300573,13.92268898,122.64,122.6,67.17851336]
[1769417301578,7.3473,122.64,122.6,67.17851336]
[1769417301978,13.91974555,122.64,122.6,67.17851336]
[1769417302179,6.57402504,122.63,122.6,67.17851336]
[1769417302380,7.3473,122.64,122.6,67.17851336]
[1769417302776,13.92132504,122.64,122.6,67.17851336]
[1769417303077,6.57402504,122.63,122.6,67.17851336]
[1769417303283,7.3473,122.64,122.6,67.17851336]
[1769417303485,13.92132504,122.64,122.6,67.17851336]
[1769417303776,7.3473,122.64,122.6,67.17851336]
[1769417306475,51.84724314,122.66,122.6,67.17851336]
[1769417306679,6.90504262,122.65,122.6,67.17851336]
[1769417307386,14.25194262,122.65,122.6,67.17851336]
[1769417307583,7.3469,122.65,122.6,67.17851336]
[1769417307988,7.347,122.64,122.6,67.17851336]
[1769417310792,7.3463,122.65,122.6,67.17851336]
[1769417310985,498.10295823,122.68,122.62,67.17851336]
[1769417311185,6.90550979,122.67,122.62,67.17851336]
[1769417311989,7.3458,122.66,122.62,67.17851336]
[1769417312491,498.10295823,122.68,122.64,67.17851336]
[1769417312492,332.9651,122.68,122.64,67.17851336]
[1769417312682,7.3451,122.68,122.64,67.17851336]
[1769417314592,7.3451,122.68,122.64,68.91871637]
[1769417315190,7.3451,122.68,122.64,67.17851336]
[1769417330599,6.52032401,122.69,122.64,67.17851336]
[1769417331900,7.345,122.68,122.64,67.17851336]
[1769417332096,67.60965691,122.68,122.62,1.74020301]
[1769417333001,7.3461,122.66,122.62,1.74020301]
[1769417334099,7.3461,122.66,122.63,67.45417438]
[1769417340004,7.3452,122.67,122.63,67.45417438]
[1769417341003,7.3452,122.67,122.64,69.19437739]
[1769417341399,7.3444,122.69,122.64,69.19437739]
[1769417341696,6.911857,122.68,122.64,69.19437739]
[1769417341902,13.4240344,122.68,122.64,69.19437739]
[1769417342098,6.5121774,122.68,122.64,69.19437739]
[1769417342301,7.3446,122.68,122.64,69.19437739]
[1769417347209,13.8567774,122.68,122.64,69.19437739]
[1769417347408,6.5121774,122.67,122.64,69.19437739]
[1769417347602,7.3446,122.68,122.64,69.19437739]
[1769417347809,13.8567774,122.68,122.64,69.19437739]
[1769417348105,6.5121774,122.67,122.64,69.19437739]
[1769417348903,7.3446,122.68,122.64,69.19437739]
[1769417349109,6.95180221,122.67,122.64,69.19437739]
[1769417349309,13.46397961,122.67,122.64,69.19437739]
[1769417349610,6.5121774,122.67,122.64,69.19437739]
[1769417350607,7.3446,122.68,122.64,69.19437739]
[1769417350798,6.95279959,122.67,122.64,69.19437739]
[1769417351001,13.46497699,122.67,122.64,69.19437739]
[1769417351303,6.5121774,122.67,122.64,69.19437739]
[1769417354222,6.5121774,122.66,122.64,69.19437739]
[1769417354415,6.56490909,122.67,122.64,67.45417438]
[1769417354912,7.3446,122.68,122.64,67.45417438]
[1769417355113,6.96098337,122.67,122.64,67.45417438]
[1769417364320,7.3446,122.68,122.64,67.45417438]
[1769417364522,6.96355571,122.67,122.64,67.45417438]
[1769417366321,13.44259978,122.67,122.64,67.45417438]
[1769417366522,6.47904407,122.67,122.64,67.45417438]
[1769417368022,6.47904407,122.67,122.62,1.73911105]
[1769417368221,6.47904407,122.67,122.62,67.75930114]
[1769417369925,75.02706759,122.67,122.62,66.02019009]
[1769417370125,6.47603538,122.66,122.62,66.02019009]
[1769417370628,13.82183538,122.66,122.62,66.02019009]
[1769417371125,7.3464,122.65,122.62,66.02019009]
[1769417372931,7.3471,122.64,122.62,53.28329009]
[1769417374427,7.3471,122.64,122.62,26.64129009]
[1769417374624,75.02101168,122.66,122.6,1.73911105]
[1769417374828,13.42399648,122.65,122.6,1.73911105]
[1769417375137,6.47298816,122.65,122.6,1.73911105]
[1769417375524,7.3475,122.64,122.6,1.73911105]
[1769417375720,6.47298816,122.65,122.6,1.73911105]
[1769417376633,6.47298816,122.65,122.6,63.94981785]
[1769417377036,7.3476,122.63,122.6,63.94981785]
[1769417377332,6.47298816,122.65,122.6,63.94981785]
[1769417378025,7.3476,122.63,122.6,63.94981785]
[1769417378429,6.47298816,122.65,122.6,63.94981785]
[1769417378934,7.3476,122.63,122.6,63.94981785]
[1769417379235,6.47298816,122.65,122.6,63.94981785]
[1769417381034,7.347,122.64,122.6,63.94981785]
[1769417386839,7.3476,122.63,122.6,63.94981785]
[1769417390041,7.347,122.64,122.6,63.94981785]
[1769417390841,114.2555,122.68,122.55,287.14015303]
[1769417390842,67.23003201,122.67,122.62,63.94981785]
[1769417391041,13.40035917,122.66,122.62,63.94981785]
[1769417391341,6.9743757,122.65,122.62,63.94981785]
[1769417391841,13.77178347,122.66,122.62,63.94981785]
[1769417392339,6.42598347,122.66,122.62,63.94981785]
[1769417392639,6.42598347,122.66,122.58,7.3504]
[1769417392640,7.3451,122.68,122.64,63.94981785]
[1769417395336,7.3451,122.68,122.64,62.2107068]
[1769417397942,7.3438,122.7,122.66,62.2107068]
[1769417398150,305.3638,122.7,122.66,62.2107068]
[1769417399150,7.3441,122.69,122.66,62.2107068]
[1769417399444,67.23003201,122.69,122.65,1.73911105]
[1769417399836,74.57403201,122.69,122.65,63.94981785]
[1769417402050,74.57403201,122.69,122.65,62.2107068]
[1769417403754,67.23003201,122.68,122.62,62.2107068]
[1769417404058,74.17592619,122.67,122.62,63.94981785]
[1769417404257,7.3463,122.66,122.62,63.94981785]
[1769417408950,7.3467,122.65,122.61,63.10108824]
[1769417409157,325.56,122.67,122.61,63.10108824]
[1769417409357,6.92954404,122.66,122.62,64.84019929]
[1769417409951,14.27534404,122.66,122.62,64.84019929]
[1769417410155,176.43291529,122.7,122.64,1.73911105]
[1769417410352,338.8383816,122.69,122.64,64.84019929]
[1769417410654,13.2783816,122.68,122.64,64.84019929]
[1769417410857,6.34792065,122.68,122.64,64.84019929]
[1769417412158,13.69282065,122.68,122.64,64.84019929]
[1769417419068,332.904,122.69,122.66,67.39997009]
[1769417420469,325.56,122.69,122.66,67.39997009]
[1769417422271,7.3434,122.7,122.66,67.39997009]
[1769417422470,4.52006463,122.7,122.66,67.39997009]
[1769417424171,71.83836525,122.7,122.6,7.3488]
[1769417424379,78.75877326,122.69,122.62,1.73911105]
[1769417424571,71.83836525,122.69,122.62,1.73911105]
[1769417425071,7.3452,122.67,122.62,1.73911105]
[1769417425674,7.3452,122.67,122.62,1.73920974]
[1769417428081,7.3458,122.66,122.62,1.73920974]
[1769417428481,186.08396525,122.69,122.59,7.3494]
[1769417428677,71.83836525,122.68,122.61,1.73920974]
[1769417428878,7.3464,122.65,122.61,1.73920974]
[1769417429775,7.347,122.64,122.61,1.73920974]
[1769417431281,7.3464,122.65,122.61,1.73920974]